fUSD/lending_fUSD_20250212
["ID","MTS","AMOUNT","RATE_DAILY","PERIOD"]
[352853797,1739373032537,-500.0,9.534e-05,2]
[352853798,1739373032547,-207.59,9.541e-05,2]
[352853799,1739373032556,-500.0,9.562e-05,2]
[352853800,1739373032565,-3744.2404584,9.613e-05,2]
[352853801,1739373032578,-7560.21100335,9.613e-05,2]
[352853802,1739373032587,-167.66,9.616e-05,2]
[352853803,1739373032596,-500.0,9.74e-05,2]
[352853804,1739373032606,-500.0,9.74e-05,2]
[352853805,1739373032615,-164.36,9.888e-05,2]
[352853806,1739373032624,-736.77,9.906e-05,2]
[352853807,1739373032633,-500.0,9.973e-05,2]
[352853808,1739373032643,-1349.789768,9.993e-05,2]
[352853809,1739373032652,-228.0575789,9.993e-05,2]
[352853810,1739373032661,-924.3343688,9.993e-05,2]
[352853811,1739373032671,-705.9314844,9.993e-05,2]
[352853812,1739373032680,-200.5035872,9.993e-05,2]
[352853813,1739373032690,-1060.0,0.0001,2]
[352853814,1739373032700,-4956.98220935,0.0001,2]
[352853815,1739373032713,-540.0,0.0001,2]
[352853816,1739373032723,-535.47,0.0001,2]
[352853817,1739373032735,-5244.38900129,0.0001,2]
[352853819,1739373032746,-3861.16061818,0.0001,2]
[352853821,1739373032757,-461.602,0.0001,2]
[352853841,1739373032942,-295.49189213,0.0001,2]
[352853844,1739373032970,-1885.6802487,0.0001,2]
[352853846,1739373032982,-550.0,0.0001,2]
[352853915,1739373038301,-328533.21608513,0.0001,2]
[352853916,1739373038313,-1990.14,0.0001,2]
[352853917,1739373038361,-2254.88152453,0.0001,2]
[352853926,1739373040343,-2531.63482603,0.0001,2]
[352853927,1739373040520,-6310.1170869,0.0001,2]
[352853928,1739373040532,-521.3152771,0.0001,2]
[352853929,1739373040751,-13674.97496001,0.0001,2]
[352853935,1739373043440,-1063.0,0.0001,2]
[352853936,1739373043449,-27610.66820634,0.0001,2]
[352853945,1739373046551,-313.6624,8.851e-05,2]
[352853946,1739373046562,-866.99360025,0.0001,2]
[352853947,1739373046575,-11980.38828061,0.0001,2]
[352854000,1739373062363,158.2784,8.699e-05,2]
[352854066,1739373116878,1540.6557,8.836e-05,2]
[352854074,1739373123147,28774.9172,8.836e-05,2]
[352854077,1739373310490,215.0377,8.836e-05,2]
[352854078,1739373345366,180.9878,8.836e-05,2]
[352854079,1739373345626,1259.5409,8.836e-05,2]
[352854080,1739373397693,13129.2639,8.836e-05,2]
[352854081,1739373495087,3600.0,8.836e-05,2]
[352854082,1739373595097,1074.32,8.219e-05,2]
[352854085,1739374028822,-300.0,8.85e-05,2]
[352854086,1739374028845,-700.0,8.851e-05,2]
[352854111,1739374037973,-1000.0,8.851e-05,2]
[352854134,1739374052499,-164.30380252,8.851e-05,2]
[352854135,1739374052522,-500.0,8.851e-05,2]
[352854136,1739374088624,149501.20870593,1.6e-05,2]
[352854321,1739374232679,-345.256,8.973e-05,2]
[352854322,1739374232690,-266.96725317,8.973e-05,2]
[352854323,1739374232703,-1396.50221221,8.973e-05,2]
[352854324,1739374233166,-1384.04999998,8.973e-05,2]
[352854325,1739374233203,-1582.22003,8.973e-05,2]
[352854326,1739374233215,-370.26050464,8.973e-05,2]
[352854327,1739374233225,-250.0,9.201e-05,2]
[352854328,1739374233235,-560.85,9.467e-05,2]
[352854329,1739374233249,-500.0,9.483e-05,2]
[352854330,1739374233260,-1475.48949527,9.483e-05,2]
[352854331,1739374233282,-576.47308612,9.483e-05,2]
[352854333,1739374233294,-11057.43653411,9.483e-05,2]
[352854336,1739374233305,-549.46730236,9.483e-05,2]
[352854338,1739374233315,-164.36,9.497e-05,2]
[352854340,1739374233324,-786.28,9.595e-05,2]
[352854342,1739374233335,-168.1,9.739e-05,2]
[352854344,1739374233345,-150.0,9.773e-05,2]
[352854346,1739374233357,-1000.0,9.775e-05,2]
[352854348,1739374233367,-5759.57,9.775e-05,2]
[352854350,1739374233376,-3701.83945586,9.775e-05,2]
[352854573,1739374238610,-1520.0,9.775e-05,2]
[352854574,1739374238623,-2617.75349665,9.775e-05,2]
[352854575,1739374238641,-2872.52403,9.775e-05,2]
[352854576,1739374238653,-518.62647072,9.775e-05,2]
[352854577,1739374238665,-602.16325875,9.775e-05,2]
[352854578,1739374238689,-5560.39045993,9.775e-05,2]
[352854579,1739374238701,-11892.72271579,9.775e-05,2]
[352854580,1739374238713,-1231.8115,9.775e-05,2]
[352854581,1739374238725,-22035.2886123,9.775e-05,2]
[352854582,1739374238736,-8630.61,9.775e-05,2]
[352854583,1739374238745,-150.99,9.775e-05,2]
[352854584,1739374238757,-499.99,9.775e-05,2]
[352854585,1739374238767,-3316.78840603,9.85e-05,2]
[352854586,1739374238776,-299.99,9.85e-05,2]
[352854588,1739374238786,-150.99,9.85e-05,2]
[352854590,1739374238796,-9999.99,9.85e-05,2]
[352854592,1739374238806,-999.99,9.85e-05,2]
[352854594,1739374238817,-500.0,9.87e-05,2]
[352854596,1739374238827,-7020.18,9.87e-05,2]
[352854598,1739374238837,-9285.06,9.87e-05,2]
[352854600,1739374238847,-697.48,9.87e-05,2]
[352854602,1739374238856,-1013.63465895,9.899e-05,2]
[352854604,1739374238867,-125475.53077575,9.9e-05,2]
[352854606,1739374238879,-618.6102866,9.991e-05,2]
[352854608,1739374238889,-1065.2921676,9.992e-05,2]
[352854610,1739374238898,-537.0016854,9.992e-05,2]
[352854612,1739374238908,-1581.2268108,9.992e-05,2]
[352854614,1739374238919,-1045.10676151,9.999e-05,3]
[352854616,1739374238929,-1239.869,9.999e-05,2]
[352854618,1739374238939,-148929.38083516,0.0001,2]
[352854620,1739374238951,-782.31746755,0.0001,2]
[352854625,1739374238990,-1330.55565,0.0001,2]
[352854627,1739374239004,-57547.01732254,0.0001,2]
[352854630,1739374240735,-10097.98984079,0.0001,2]
[352854631,1739374240747,-262.58250095,0.0001,2]
[352854632,1739374240974,-3848.79999956,0.0001,2]
[352854651,1739374243638,-961.04,0.0001,2]
[352854652,1739374243908,-90569.74567997,0.0001,2]
[352854657,1739374246565,-260.98892028,0.0001,2]
[352854661,1739374246632,-9673.78419698,0.0001,2]
[352854663,1739374246736,-7092.36675688,0.0001,2]
[352854737,1739374935520,1959.19637193,0.0002,120]
[352854739,1739375175071,1053.96,8.219e-05,2]
[352855063,1739375431748,-775.0832,8.973e-05,2]
[352855064,1739375431761,-1079.13323839,8.973e-05,2]
[352855065,1739375431774,-3915.82249516,8.973e-05,2]
[352855066,1739375431786,-5.04426645,8.973e-05,2]
[352855067,1739375431796,-250.0,8.978e-05,2]
[352855068,1739375431807,-150.0,9e-05,2]
[352855069,1739375431817,-150.0,9e-05,2]
[352855070,1739375431827,-150.0,9e-05,2]
[352855071,1739375431838,-115.16287318,9e-05,2]
[352855072,1739375431861,-34.83712682,9e-05,2]
[352855073,1739375431875,-150.0,9.125e-05,2]
[352855074,1739375431886,-150.0,9.25e-05,2]
[352855075,1739375431896,-150.0,9.25e-05,2]
[352855076,1739375431906,-150.0,9.375e-05,2]
[352855077,1739375431916,-150.0,9.5e-05,2]
[352855078,1739375431926,-150.0,9.5e-05,2]
[352855079,1739375431935,-556.76,9.579e-05,2]
[352855080,1739375431946,-150.0,9.625e-05,2]
[352855081,1739375431956,-1000.0,9.645e-05,2]
[352855082,1739375431966,-3869.11,9.67e-05,2]
[352855083,1739375431976,-150.99,9.67e-05,2]
[352855084,1739375431986,-999.99,9.67e-05,2]
[352855085,1739375431995,-150.99,9.67e-05,2]
[352855086,1739375432006,-299.99,9.67e-05,2]
[352855087,1739375432015,-266.18,9.67e-05,2]
[352855088,1739375432025,-1905.74,9.722e-05,2]
[352855089,1739375432034,-150.0,9.75e-05,2]
[352855090,1739375432045,-150.0,9.75e-05,2]
[352855091,1739375432055,-439.89,9.808e-05,2]
[352855092,1739375432066,-439.89,9.808e-05,2]
[352855093,1739375432076,-439.89,9.808e-05,2]
[352855094,1739375432086,-775.41,9.808e-05,2]
[352855095,1739375432095,-439.89,9.808e-05,2]
[352855096,1739375432105,-150.0,9.836e-05,2]
[352855097,1739375432120,-250.0,9.853e-05,2]
[352855098,1739375432131,-164.67,9.86e-05,2]
[352855099,1739375432140,-831.49,9.87e-05,2]
[352855100,1739375432149,-150.0,9.875e-05,2]
[352855101,1739375432160,-245.74,9.897e-05,2]
[352855102,1739375432169,-9461.85691124,9.9e-05,2]
[352855107,1739375436794,-1973.66,9.9e-05,2]
[352855108,1739375436880,-5792.0,9.9e-05,2]
[352855168,1739375438014,-707.453531,9.9e-05,2]
[352855169,1739375438026,-13689.43291626,9.9e-05,2]
[352855213,1739375439897,-512.74836159,9.9e-05,2]
[352855214,1739375439909,-830893.8402059,9.9e-05,2]
[352855215,1739375439919,-150.0,9.991e-05,2]
[352855216,1739375439929,-2272.5915579,9.992e-05,2]
[352855217,1739375439938,-1417.1886464,9.992e-05,2]
[352855218,1739375439947,-1043.9785044,9.993e-05,2]
[352855219,1739375439958,-999.0,0.0001,2]
[352855220,1739375439969,-518089.51093474,0.0001,2]
[352855221,1739375439979,-201.14620076,0.0001,2]
[352855222,1739375439988,-257.63695653,0.0001,2]
[352855223,1739375439998,-1323088.76111583,0.0001,2]
[352855224,1739375440007,-20000.0,0.0001,2]
[352855225,1739375440017,-1057887.60453396,0.0001,2]
[352855226,1739375440026,-441.96209879,0.0001,2]
[352855227,1739375440036,-400.37220169,0.0001,2]
[352855228,1739375440047,-134169.55319653,0.0001,2]
[352855229,1739375440057,-2000.0,0.0001,2]
[352855230,1739375440067,-200.0,0.0001,2]
[352855231,1739375440076,-991.896,0.0001,2]
[352855232,1739375440086,-575.84589645,0.0001,2]
[352855233,1739375440096,-618.79342888,0.0001,2]
[352855234,1739375440105,-150.0,0.0001,2]
[352855235,1739375440115,-150.0,0.0001,2]
[352855236,1739375440127,-150.0,0.0001,2]
[352855237,1739375440136,-4000.0,0.0001,2]
[352855238,1739375440146,-1903.65435841,0.0001,2]
[352855239,1739375440155,-895.2155327,0.0001,2]
[352855240,1739375440165,-48004.05829739,0.0001,2]
[352855241,1739375440175,-685.50793196,0.0001,2]
[352855242,1739375440185,-348.0,0.00010055,2]
[352855243,1739375440195,-249.16479678,0.000101,2]
[352855244,1739375440205,-200.0,0.000101,2]
[352855245,1739375440215,-198.30897796,0.00010136,2]
[352855246,1739375440224,-156.69,0.00010137,2]
[352855247,1739375440234,-348.27,0.00010137,2]
[352855248,1739375440244,-153.49,0.00010137,2]
[352855249,1739375440254,-200.0,0.00010201,2]
[352855250,1739375440263,-172.86,0.00010212,2]
[352855251,1739375440272,-417.29170822,0.00010395,2]
[352855252,1739375440282,-1053.96,0.0001043,2]
[352855253,1739375440292,-150.0,0.0001045,2]
[352855254,1739375440301,-417.29170822,0.00010522,2]
[352855255,1739375440311,-2025.0,0.0001065,2]
[352855256,1739375440320,-1273.0,0.0001065,2]
[352855257,1739375440329,-569.0,0.0001065,2]
[352855258,1739375440339,-638.0,0.0001065,2]
[352855259,1739375440348,-1786.0,0.0001065,2]
[352855260,1739375440357,-908.0,0.0001065,2]
[352855261,1739375440367,-1265.0,0.0001065,2]
[352855263,1739375440377,-783.0,0.0001065,2]
[352855265,1739375440386,-2955.0,0.0001065,2]
[352855266,1739375440395,-4026.0,0.0001065,2]
[352855269,1739375440405,-539.0,0.0001065,2]
[352855270,1739375440415,-1008.0,0.0001065,2]
[352855273,1739375440427,-231.981,0.0001065,2]
[352855274,1739375440437,-3914.0,0.0001065,2]
[352855276,1739375440448,-1109.0,0.0001065,2]
[352855277,1739375440460,-6620.0,0.00010719,2]
[352855278,1739375440471,-775.41,0.00010767,2]
[352855279,1739375440481,-775.41,0.00010767,2]
[352855280,1739375440491,-231.13,0.00010767,2]
[352855281,1739375440501,-775.41,0.00010767,2]
[352855282,1739375440510,-1549.14,0.00010767,2]
[352855283,1739375440520,-786.28,0.00010795,2]
[352855284,1739375440530,-417.29170824,0.00010835,2]
[352855285,1739375440540,-1000.0,0.0001085,2]
[352855286,1739375440550,-36455.18359003,0.0001088,2]
[352855287,1739375440559,-631.24760638,0.00010882,2]
[352855288,1739375440570,-61704.92771013,0.000109,2]
[352855289,1739375440581,-170.17099465,0.000109,2]
[352855290,1739375440591,-500.0,0.00010959,2]
[352855291,1739375440601,-500.0,0.00010959,2]
[352855292,1739375440611,-2000.0,0.00010959,2]
[352855293,1739375440623,-500.0,0.00010959,2]
[352855294,1739375440633,-200.0,0.00010959,2]
[352855295,1739375440643,-200.0,0.00010959,2]
[352855296,1739375440652,-150.0,0.00010959,2]
[352855297,1739375440662,-255.0,0.0001099,2]
[352855298,1739375440673,-461.3503977,0.00010999,2]
[352855299,1739375440683,-151.78,0.00011,2]
[352855300,1739375440692,-151.78,0.00011,2]
[352855301,1739375440702,-151.78,0.00011,2]
[352855302,1739375440712,-151.78,0.00011,2]
[352855303,1739375440723,-151.78,0.00011,2]
[352855304,1739375440735,-151.78,0.00011,2]
[352855305,1739375440744,-151.78,0.00011,2]
[352855306,1739375440755,-151.78,0.00011,2]
[352855307,1739375440896,-151.78,0.00011,2]
[352855308,1739375440932,-151.78,0.00011,2]
[352855309,1739375440942,-151.78,0.00011,2]
[352855310,1739375440952,-151.78,0.00011,2]
[352855311,1739375440962,-11585.70923879,0.00011099,2]
[352855327,1739375444781,-775.41,9.808e-05,2]
[352855328,1739375444791,-155.227,0.0001065,2]
[352855329,1739375444802,-33.11769085,0.00011099,2]
[352855330,1739375445026,-817.2353676,0.00011099,2]
[352855332,1739375445036,-800.64792525,0.00011099,2]
[352855351,1739375445663,-1660.13983038,0.00011099,2]
[352855352,1739375445676,-406.61466009,0.00011099,2]
[352855353,1739375445743,-2558.47832836,0.00011099,2]
[352855354,1739375445758,-4827.86045042,0.00011099,2]
[352855356,1739375446910,-2182.32110265,0.00011099,2]
[352855357,1739375446920,-245.74,0.00011134,2]
[352855358,1739375446930,-190.0,0.00011151,2]
[352855359,1739375446939,-877.42,0.00011178,2]
[352855360,1739375446950,-438.88,0.00011178,2]
[352855361,1739375446960,-150.0,0.00011178,2]
[352855362,1739375446970,-438.88,0.00011178,2]
[352855363,1739375446980,-150.0,0.00011178,2]
[352855364,1739375446991,-438.88,0.00011178,2]
[352855365,1739375447001,-150.0,0.00011178,2]
[352855366,1739375447012,-375.53,0.00011178,2]
[352855367,1739375447023,-150.0,0.00011178,2]
[352855368,1739375447033,-438.88,0.00011178,2]
[352855369,1739375447043,-190.09480713,0.0001119,2]
[352855370,1739375447054,-12436.06229715,0.0001133,2]
[352855371,1739375447065,-168.1,0.00011346,2]
[352855372,1739375447075,-250.19678149,0.000114,2]
[352855373,1739375447086,-500.0,0.00011408,2]
[352855374,1739375447098,-500.0,0.00011408,2]
[352855375,1739375447109,-501.09403839,0.00011435,2]
[352855376,1739375447120,-500.0,0.00011435,2]
[352855377,1739375447133,-807.10006789,0.00011463,2]
[352855378,1739375447143,-618.79342883,0.00011467,2]
[352855379,1739375447153,-151.78,0.0001149,2]
[352855380,1739375447164,-151.78,0.0001149,2]
[352855381,1739375447174,-151.78,0.0001149,2]
[352855382,1739375447184,-300.0,0.00011499,2]
[352855383,1739375447193,-300.0,0.00011499,2]
[352855384,1739375447203,-300.0,0.00011499,2]
[352855385,1739375447213,-300.0,0.00011499,2]
[352855386,1739375447223,-300.0,0.00011499,2]
[352855387,1739375447234,-300.0,0.00011499,2]
[352855388,1739375447245,-666.0,0.00011499,2]
[352855389,1739375447254,-300.0,0.00011499,2]
[352855390,1739375447265,-300.0,0.00011499,2]
[352855391,1739375447275,-666.0,0.00011499,2]
[352855392,1739375447284,-666.0,0.00011499,2]
[352855393,1739375447295,-21336.71321593,0.000115,2]
[352855394,1739375447308,-2536.20391795,0.000115,2]
[352855504,1739375554689,7732.9234,8.836e-05,2]
[352855506,1739376090876,150.0,0.00019837,120]
[352855508,1739376210824,150.0,0.00019771,120]
[352855509,1739376247337,948.56,8.567e-05,2]
[352856134,1739376630868,150.0,0.00019937,120]
[352856138,1739376631776,-669.8442,8.851e-05,2]
[352856139,1739376631787,-293.1368,8.973e-05,2]
[352856140,1739376631798,-500.0,9.736e-05,2]
[352856141,1739376631808,-156.69,0.00010137,2]
[352856142,1739376631818,-167.43,0.0001025,2]
[352856143,1739376631828,-165.77,0.00010331,2]
[352856144,1739376631839,-3446.81175735,0.00010331,2]
[352856145,1739376631850,-218.16,0.00010393,2]
[352856146,1739376631861,-150.0,0.00010657,2]
[352856147,1739376631870,-3914.0,0.00010657,2]
[352856148,1739376631880,-238.9442733,0.00010657,2]
[352856149,1739376631893,-769.0557267,0.00010657,2]
[352856150,1739376631903,-532.44706294,0.00010777,2]
[352856151,1739376631915,-280.78293706,0.00010777,2]
[352856152,1739376631925,-150.0,0.00010799,2]
[352856153,1739376631935,-69.2584562,0.000108,2]
[352856154,1739376631948,-80.7415438,0.000108,2]
[352856155,1739376631960,-275.41378201,0.000108,2]
[352856156,1739376631972,-725.67701449,0.000108,2]
[352856157,1739376631995,-271.9092035,0.000108,2]
[352856158,1739376632011,-2025.0,0.000108,2]
[352856159,1739376632022,-403.28376585,0.000108,2]
[352856160,1739376632036,-165.71623415,0.000108,2]
[352856161,1739376632046,-638.0,0.000108,2]
[352856162,1739376632057,-1786.0,0.000108,2]
[352856163,1739376632067,-1265.0,0.000108,2]
[352856164,1739376632078,-783.0,0.000108,2]
[352856165,1739376632089,-908.0,0.000108,2]
[352856166,1739376632099,-2955.0,0.000108,2]
[352856167,1739376632109,-3486.88376585,0.000108,2]
[352856168,1739376632122,-539.11623415,0.000108,2]
[352856169,1739376632132,-539.0,0.000108,2]
[352856170,1739376632142,-948.56,0.00010831,2]
[352856171,1739376632152,-471.76,0.00010889,2]
[352856172,1739376632162,-1000.0,0.00010951,2]
[352856173,1739376632172,-165.02,0.00010955,2]
[352856175,1739376632185,-437.64,0.00010978,2]
[352856177,1739376632197,-172.86,0.0001111,2]
[352856179,1739376632212,-307.5669318,0.00011269,2]
[352856181,1739376632222,-1095.04613089,0.0001127,2]
[352856183,1739376632235,-299.99,0.00011281,2]
[352856186,1739376632245,-751.42,0.00011281,2]
[352856188,1739376632256,-150.99,0.00011281,2]
[352856190,1739376632266,-170.17099464,0.000114,2]
[352856192,1739376632277,-4182.48528091,0.000114,2]
[352856193,1739376632288,-321.57723625,0.000114,2]
[352856194,1739376632298,-500.0,0.000114,2]
[352856195,1739376632309,-500.0,0.000114,2]
[352856196,1739376632319,-500.0,0.000114,2]
[352856197,1739376632329,-500.0,0.000114,2]
[352856199,1739376632339,-42.35833771,0.000114,2]
[352856201,1739376632352,-457.64166229,0.000114,2]
[352856203,1739376632362,-500.0,0.000114,2]
[352856205,1739376632372,-500.0,0.000114,2]
[352856207,1739376632382,-500.0,0.000114,2]
[352856209,1739376632392,-500.0,0.000114,2]
[352856211,1739376632402,-500.0,0.000114,2]
[352856213,1739376632412,-461.84833768,0.000114,2]
[352856216,1739376632434,-38.15166232,0.000114,2]
[352856218,1739376632444,-264.68604243,0.000114,2]
[352856222,1739376632468,-235.31395757,0.000114,2]
[352856224,1739376632478,-500.0,0.000114,2]
[352856226,1739376632488,-243.70604243,0.000114,2]
[352856724,1739376637666,-475.439,0.00010657,2]
[352856726,1739376637675,-361.96292961,0.00011172,2]
[352856742,1739376637834,-647.51174856,0.00011172,2]
[352856744,1739376637844,-256.29395757,0.000114,2]
[352856746,1739376637854,-302.72574662,0.000114,2]
[352856748,1739376637867,-197.27425338,0.000114,2]
[352856750,1739376637876,-500.0,0.000114,2]
[352856753,1739376637886,-500.0,0.000114,2]
[352856755,1739376637897,-500.0,0.000114,2]
[352856757,1739376637906,-500.0,0.000114,2]
[352856759,1739376637916,-500.0,0.000114,2]
[352856761,1739376637926,-500.0,0.000114,2]
[352856763,1739376637936,-500.0,0.000114,2]
[352856765,1739376637946,-500.0,0.000114,2]
[352856767,1739376637955,-500.0,0.000114,2]
[352856769,1739376637968,-500.0,0.000114,2]
[352856771,1739376637977,-500.0,0.000114,2]
[352856773,1739376637987,-500.0,0.000114,2]
[352856775,1739376637997,-500.0,0.000114,2]
[352856777,1739376638006,-500.0,0.000114,2]
[352856779,1739376638016,-500.0,0.000114,2]
[352856781,1739376638026,-500.0,0.000114,2]
[352856783,1739376638036,-500.0,0.000114,2]
[352856785,1739376638046,-500.0,0.000114,2]
[352856787,1739376638055,-500.0,0.000114,2]
[352856789,1739376638065,-500.0,0.000114,2]
[352856791,1739376638074,-500.0,0.000114,2]
[352856793,1739376638084,-500.0,0.000114,2]
[352856795,1739376638094,-500.0,0.000114,2]
[352856797,1739376638105,-500.0,0.000114,2]
[352856799,1739376638114,-500.0,0.000114,2]
[352856801,1739376638124,-500.0,0.00011408,2]
[352856803,1739376638134,-2000.0,0.00011408,2]
[352856805,1739376638144,-500.0,0.00011408,2]
[352856807,1739376638154,-200.0,0.00011408,2]
[352856809,1739376638164,-466.81986882,0.00011428,2]
[352856811,1739376638174,-412.0613392,0.00011491,2]
[352856813,1739376638184,-562.0405136,0.00011491,2]
[352856815,1739376638194,-901.2833469,0.00011491,2]
[352856817,1739376638206,-793.516,0.00011492,2]
[352856819,1739376638219,-500.0,0.00011499,2]
[352856821,1739376638229,-500.0,0.00011499,2]
[352856824,1739376638242,-350.0,0.00011499,2]
[352856828,1739376638252,-470.21741098,0.00011499,2]
[352856831,1739376638262,-171113.95199644,0.000115,2]
[352856834,1739376638291,-27201.73918289,0.000115,2]
[352856836,1739376638302,-3758.3392,0.000115,2]
[352856839,1739376638315,-1442.0,0.000115,2]
[352856971,1739376639678,-500.0,0.000114,2]
[352856974,1739376639690,-297.49998,0.000114,2]
[352856985,1739376639791,-202.50002,0.000114,2]
[352856987,1739376639801,-500.0,0.000114,2]
[352856989,1739376639811,-46948.20189419,0.000115,2]
[352856996,1739376639870,-500.0,0.000114,2]
[352857008,1739376640050,-6404.82203652,0.000115,2]
[352857010,1739376640062,-2009.61341121,0.000115,2]
[352857015,1739376640096,-52600.68441378,0.000115,2]
[352857017,1739376640108,-1417.3985,0.000115,2]
[352857019,1739376640120,-49004.0,0.000115,2]
[352857021,1739376640132,-400.10899435,0.000115,2]
[352857025,1739376640158,-405.555575,0.000115,2]
[352857028,1739376640173,-177060.85651468,0.000115,2]
[352857031,1739376640201,-307.29309,0.000115,2]
[352857034,1739376640220,-1983.1999998,0.000115,2]
[352857295,1739376642856,-500.0,0.000114,2]
[352857298,1739376642866,-500.0,0.000114,2]
[352857300,1739376642875,-500.0,0.000114,2]
[352857301,1739376642885,-555.0,0.000114,2]
[352857304,1739376642894,-114304.86453411,0.000115,2]
[352857322,1739376643070,-8502.8615102,0.000115,2]
[352857324,1739376643082,-4301.586,0.000115,2]
[352857552,1739376645681,-1454.51556309,0.000115,2]
[352857554,1739376645692,-435.15,0.000115,2]
[352857556,1739376645708,-1016.60000025,0.000115,2]
[352857561,1739376645745,-744.6166125,0.000115,2]
[352857574,1739376645867,-1921.08062441,0.000115,2]
[352857575,1739376645880,-967.1442304,0.000115,2]
[352857580,1739376645928,-1201.0,0.000115,2]
[352857588,1739376645999,-1589.99999987,0.000115,2]
[352857590,1739376646011,-4600.9855386,0.000115,2]
[352858269,1739376721788,5787.961,8.836e-05,2]
[352858275,1739376810894,150.0,0.00019609,120]
[352858276,1739376870810,150.0,0.00019983,120]
[352858277,1739377050864,150.0,0.00019628,120]
[352858279,1739377110766,150.0,0.00019671,120]
[352858280,1739377170755,150.0,0.00019729,120]
[352858281,1739377277473,919.21,8.676e-05,2]
[352858282,1739377290780,150.0,0.00019973,120]
[352858283,1739377354369,3454.34001,0.00020568,120]
[352858423,1739377831819,-1422.01165968,8.851e-05,2]
[352858424,1739377831833,-225.36954032,8.851e-05,2]
[352858425,1739377831842,-196.27547794,8.912e-05,2]
[352858426,1739377831852,-500.0,8.912e-05,2]
[352858427,1739377831862,-3874.0724,8.973e-05,2]
[352858428,1739377831874,-500.0,9.736e-05,2]
[352858429,1739377831883,-511.77687127,9.899e-05,2]
[352858430,1739377831893,-150.0,9.899e-05,2]
[352858431,1739377831903,-43887.50571045,9.9e-05,2]
[352858432,1739377831957,-729.35629871,9.9e-05,2]
[352858433,1739377831970,-330.70021386,9.9e-05,2]
[352858434,1739377831988,-294.29499367,9.9e-05,2]
[352858435,1739377832000,-19439.10929557,9.9e-05,2]
[352858436,1739377832011,-26757.37651544,0.0001,2]
[352858437,1739377832034,-22045.99999999,0.0001,2]
[352858438,1739377832046,-21488.901687,0.0001,2]
[352858439,1739377832058,-589.2249975,0.0001,2]
[352858440,1739377832096,-385.91986734,0.0001,2]
[352858441,1739377832203,-4111.2273854,0.0001,2]
[352858637,1739377837764,-150.0,9.999e-05,2]
[352858638,1739377837778,-4821.340227,0.0001,2]
[352858639,1739377837820,-10887.04581479,0.0001,2]
[352858640,1739377837984,-17498.67564213,0.0001,2]
[352858827,1739377839951,-254.0011716,0.0001,2]
[352858844,1739377840109,-25469.58281239,0.0001,2]
[352858850,1739377840164,-584.76430095,0.0001,2]
[352858857,1739377840221,-956.89257999,0.0001,2]
[352858860,1739377840233,-14465.86995713,0.0001,2]
[352858862,1739377840242,-40834.13004187,0.0001,2]
[352859136,1739377842813,-37832.60469907,0.0001,2]
[352859138,1739377842824,-502.55641872,0.0001,2]
[352859142,1739377842835,-112549.89491821,0.0001,2]
[352859145,1739377842847,-292.8706028,0.0001,2]
[352859159,1739377842975,-471.64641658,0.0001,2]
[352859170,1739377843071,-9140.79484561,0.0001,2]
[352859172,1739377843080,-330.85,0.00010137,2]
[352859174,1739377843090,-500.0,0.00010353,2]
[352859176,1739377843100,-269.07,0.00010407,2]
[352859178,1739377843110,-250.0,0.00010539,2]
[352859180,1739377843120,-720.97,0.00010553,2]
[352859182,1739377843130,-311.91,0.00010624,2]
[352859184,1739377843139,-1000.0,0.00010823,2]
[352859186,1739377843149,-255.0,0.00010889,2]